Cogmind - Beta 13 X1 @@@ ROGUE MODE // 2023.10.02 @ 23:23:34 Player: Exp. Geonium Core Result: Core destroyed Performance ------------- Evolutions (7) 3500 Regions Visited (29) 5800 Robots Destroyed (222) 1110 Value Destroyed (9477) 9477 Prototype IDs (74) 1480 Alien Tech Used (1) 200 Bonus (8339) 8339 TOTAL SCORE: 29906 Bonus ------- High Alert Combat Kills 1129 Follower Combat Kills 1341 Aligned with FarCom 300 Met Data Miner 300 Destroyed Z-Imprinter 1000 Met Warlord at Base 500 MAIN.C Attacked Warlord 500 Warlord Defense Kills 2532 Built Enhanced Grunts 300 Found Hidden Lab 3000 Friendly Fire -2563 Cogmind --------- Core Integrity 0/1300 Matter 2/300 Energy 395/700 System Corruption 60% Temperature Cool (0) Movement Core (50) Location -3/Lab Parts ------- > --- POWER (3) -------- (None) > --- PROPULSION (6) --- Centrium Heavy Treads (fused) Biometal Heavy Treads (fused) > --- UTILITY (9) ------ Experimental Energy Well Advanced Target Analyzer > --- WEAPON (4) ------- (None) > --- INVENTORY (5) ---- Deep Network Scanner Peak State ------------ > --- POWER ------------ Light Quantum Reactor Vortex Chain Reactor > --- PROPULSION ------- Centrium Heavy Treads Biometal Heavy Treads Biometal Heavy Treads > --- UTILITY ---------- Advanced Heat Sink Large Storage Unit Advanced Sensor Array Advanced Signal Interpreter Experimental Targeting Computer Advanced Target Analyzer Advanced Kinecellerator Centrium Medium Armor Plating Thermal Barrier > --- WEAPON ----------- Hypervelocity Railgun Hypervelocity Railgun Helical Railgun RU-N14's Throwing Claymores v3 > --- INVENTORY -------- Experimental Energy Well Tactical Coordination Suite Experimental Cloaking Device Improved Force Field Antimissile System Enhanced Nova Cannon Enhanced Nova Cannon Hypervelocity Railgun Hypervelocity Railgun Vortex Catalyst Activator Field Lobotomy Kit RU-N14's Throwing Claymores v3 RU-N14's Throwing Claymores v3 Phasing Sabre [Rating: 186] Favorites ----------- Power Light Nuclear Core Engine Light Ion Engine Power Core Light Nuclear Core Reactor Vortex Chain Reactor Propulsion Light Treads Treads Light Treads Leg Flexi-carbon Leg Hover Unit Zionite Glidesys I Flight Unit Nuclear Pulse Thruster Utility Large Storage Unit Device Advanced Sensor Array Storage Large Storage Unit Processor Advanced Signal Interpreter Hackware Hacking Suite Protection Hardened Medium Armor Plating Weapon XL Autogun Subcomponent Energy Gun Vortex Rifle Energy Cannon Guided Plasma Cannon Ballistic Gun XL Autogun Subcomponent Launcher Grenade Launcher Special Weapon RU-N14's Throwing Claymores v3 Slashing Weapon Phasing Sabre Build | -11 -10 -10 -10 -9 -8 -7 -7 -7 -7 -7 -6 -6 -6 -6 -6 -5 -5 -5 -5 -5 -4 -4 -4 -4 -4 -4 -3 -3 -3 ------- Run | Jun Mat Min Exi Min Mat Fac Low Low Zio Dee Pro Fac Low Low Dat Pro Fac Upp Upp War Pro Fac Ext Cet Arc Hub Res Arm Lab Slots Evolved 14 | . . . . . 4 2 . . . . . 2 . . . . 2 . . . . 2 . . . . 2 . . Power 2 | . . . . . . . . . . . . 1 . . . . . . . . . . . . . . 1 . . Propulsion 4 | . . . . . 1 1 . . . . . . . . . . 1 . . . . 1 . . . . . . . Utility 6 | . . . . . 1 1 . . . . . 1 . . . . 1 . . . . 1 . . . . 1 . . Weapon 2 | . . . . . 2 . . . . . . . . . . . . . . . . . . . . . . . . Parts Attached 211 | . 6 5 3 1 9 10 4 6 4 45 3 7 3 22 . . 11 . 16 8 . 3 5 1 8 2 14 14 1 Power 17 | . . 1 . . 2 . . . . 3 . 1 . 4 . . 1 . 2 1 . . . . . . 1 1 . Engine 3 | . . 1 . . 1 . . . . . . 1 . . . . . . . . . . . . . . . . . Core 5 | . . . . . 1 . . . . . . . . 3 . . . . 1 . . . . . . . . . . Reactor 9 | . . . . . . . . . . 3 . . . 1 . . 1 . 1 1 . . . . . . 1 1 . Propulsion 44 | . 2 . 1 1 4 3 1 . . 11 . 4 . 4 . . 4 . 5 1 . . 2 1 . . . . . Treads 22 | . 2 . 1 1 4 3 1 . . . . . . . . . 1 . 5 1 . . 2 1 . . . . . Leg 3 | . . . . . . . . . . 2 . . . 1 . . . . . . . . . . . . . . . Wheel . | . . . . . . . . . . . . . . . . . . . . . . . . . . . . . . Hover 17 | . . . . . . . . . . 9 . 4 . 3 . . 1 . . . . . . . . . . . . Flight 2 | . . . . . . . . . . . . . . . . . 2 . . . . . . . . . . . . Utility 85 | . 2 . 1 . 2 7 1 1 . 22 1 2 1 9 . . 3 . 4 5 . 1 1 . 6 . 9 6 1 Device 40 | . 1 . . . . 2 1 . . 7 1 . 1 5 . . . . 3 3 . . . . 4 . 8 4 . Storage 7 | . 1 . . . . . . . . 2 . . . . . . 1 . 1 1 . . . . . . . . 1 Processor 9 | . . . 1 . . 1 . . . . . 2 . 1 . . . . . 1 . . 1 . . . 1 1 . Hackware 3 | . . . . . . . . . . . . . . . . . 1 . . . . 1 . . 1 . . . . Protection 26 | . . . . . 2 4 . 1 . 13 . . . 3 . . 1 . . . . . . . 1 . . 1 . Artifact . | . . . . . . . . . . . . . . . . . . . . . . . . . . . . . . Weapon 65 | . 2 4 1 . 1 . 2 5 4 9 2 . 2 5 . . 3 . 5 1 . 2 2 . 2 2 4 7 . Energy Gun 8 | . . . . . . . . . . 6 . . . . . . . . . . . 1 1 . . . . . . Energy Cannon 1 | . . . . . . . . 1 . . . . . . . . . . . . . . . . . . . . . Ballistic Gun 31 | . 2 3 . . 1 . 1 2 1 3 1 . 1 4 . . 3 . 4 . . . . . . 1 2 2 . Ballistic Cannon . | . . . . . . . . . . . . . . . . . . . . . . . . . . . . . . Launcher 3 | . . 1 1 . . . . . . . . . . . . . . . . . . . . . 1 . . . . Special Weapon 9 | . . . . . . . . . . . . . . . . . . . . 1 . 1 1 . . 1 2 3 . Impact Weapon . | . . . . . . . . . . . . . . . . . . . . . . . . . . . . . . Slashing Weapon 13 | . . . . . . . 1 2 3 . 1 . 1 1 . . . . 1 . . . . . 1 . . 2 . Piercing Weapon . | . . . . . . . . . . . . . . . . . . . . . . . . . . . . . . Special Melee Weapon . | . . . . . . . . . . . . . . . . . . . . . . . . . . . . . . Unidentified Prototypes 32 | . . . . . . 1 . . . 12 . . . 2 . . . . . 7 . 1 . 1 5 . 3 . . Parts Lost 43 | . . 1 . 1 . . . . . 19 . 1 . 7 . 2 . . 5 . . . . . 1 . 1 1 4 Power 3 | . . . . . . . . . . 1 . . . 1 . . . . 1 . . . . . . . . . . Propulsion 13 | . . . . 1 . . . . . 5 . 1 . 3 . 1 . . 1 . . . . . . . . . 1 Utility 20 | . . . . . . . . . . 9 . . . 3 . 1 . . 3 . . . . . . . 1 . 3 Weapon 7 | . . 1 . . . . . . . 4 . . . . . . . . . . . . . . 1 . . 1 . Highest Loss Streak 9 | . . 1 . 1 . . . . . 9 . 1 . 7 . 2 . . 2 . . . . . 1 . 1 1 3 To Critical Strikes . | . . . . . . . . . . . . . . . . . . . . . . . . . . . . . . Average Slot Usage (%) 75 | . 98 95 100 99 68 76 76 75 77 71 76 78 80 82 75 70 59 72 77 78 83 78 80 81 76 76 80 80 31 Engine 2 | . 14 14 14 14 6 . . . . . . 5 6 . . . . . . . . . . . . . . . . Core 2 | . . . . . 2 7 7 7 7 2 . . . 2 6 6 5 5 4 1 . . . . . . . . . Reactor 2 | . . . . . . . . . . 4 7 6 6 5 6 4 . 5 4 5 5 5 5 5 5 5 8 9 . Treads 17 | . 24 28 28 27 25 30 30 30 30 8 . . . . . . . . 10 16 16 15 18 16 15 15 13 13 11 Hover 3 | . . . . . . . . . . 16 30 25 26 14 18 16 11 16 4 . . . . . . . . . . Device 11 | . 12 14 6 . . 11 15 7 7 12 7 6 13 11 12 10 5 5 7 19 22 20 17 15 12 10 17 19 5 Storage 7 | . 14 14 14 14 9 7 7 7 7 1 7 6 6 6 6 6 6 11 10 11 11 10 10 10 8 5 4 4 . Processor 7 | . . . 7 14 9 7 7 7 7 2 . 6 13 14 18 17 11 11 8 . 5 5 5 10 10 10 10 11 11 Hackware 1 | . . . . . . . . . . . . . . . . . 2 5 5 4 . 4 5 5 7 10 3 . . Protection 3 | . . . . . 7 3 . 6 7 11 15 12 . . . . . 5 2 . . . . . 2 5 4 4 . Ballistic Gun 8 | . 28 21 20 14 9 7 6 4 5 6 6 6 5 13 . . 1 . 13 11 11 8 3 . . 1 9 12 . Slashing Weapon 2 | . . . . . . . . 1 3 . . . . 5 6 6 5 5 3 5 5 5 5 5 5 5 3 2 . Naked Turns . | . . . . . . . . . . . . . . . . . . . . . . . . . . . . . . Heaviest Build 124 | 11 31 28 27 27 47 54 42 49 49 51 51 56 54 54 43 43 42 42 54 93 93 98 98 93 93 96 124 119 106 Greatest Support 230 | 20 40 40 40 40 60 85 85 85 85 85 56 56 56 56 45 45 42 42 173 173 170 170 210 230 230 230 230 230 230 Greatest Overweight (x) 2 | . 1 . . 1 . . . . . 1 . 1 . 2 . 1 1 . 1 . . . . . . . . . . Average Overweight (x) . | . . . . . . . . . . . . . . . . . . . . . . . . . . . . . . Largest Inventory Capacity 15 | . 15 15 15 15 15 15 15 15 15 15 15 15 15 15 15 15 15 15 15 15 15 15 15 15 15 15 15 15 15 Average Capacity 13 | . 14 15 15 15 15 15 15 15 15 7 15 15 15 15 15 15 15 15 15 15 15 15 15 15 15 15 15 15 5 Most Carried 15 | . 9 15 15 15 15 15 15 15 15 15 15 15 15 15 12 14 15 15 15 15 15 15 15 15 15 15 15 15 12 Average Carried 11 | . 5 12 14 15 13 14 14 12 13 6 14 14 14 11 12 12 13 15 8 10 15 13 14 14 14 14 14 14 2 Final Capacity 15 | 8 15 15 15 15 15 15 15 15 15 15 15 15 15 15 15 15 15 15 15 15 15 15 15 15 15 15 15 15 5 Final Carried 15 | 6 9 14 15 15 15 15 15 11 15 15 15 15 15 12 12 14 15 15 4 15 15 13 15 15 15 13 15 12 1 Class Distribution -------------------- 29% | Mutant 18% | Scavenger-Tank 13% | Scavenger-Skirmisher 12% | Scavenger-Mutant 5% | Scavenger-Gunner 5% | Commander-Mutant 4% | Scavenger-Scout 3% | Hacker-Mutant Dominant Class ---------------- Mutant | -10/Materials Mutant | -10/Mines Mutant | -10/Exiles Mutant | -9/Mines Scavenger-Skirmisher | -8/Materials Scavenger-Skirmisher | -7/Factory Scavenger-Skirmisher | -7/Lower Caves Scavenger-Tank | -7/Lower Caves Scavenger-Tank | -7/Zion Scavenger-Tank | -7/Deep Caves Scavenger-Sprinter | -6/Proximity Caves Scavenger-Sprinter | -6/Factory Scavenger-Scout | -6/Lower Caves Assassin | -6/Lower Caves Scavenger-Scout | -6/Data Miner Scavenger-Scout | -5/Proximity Caves Mutant | -5/Factory Scavenger-Mutant | -5/Upper Caves Scavenger-Skirmisher | -5/Upper Caves Mutant | -5/Warlord Commander-Mutant | -4/Proximity Caves Commander-Mutant | -4/Factory Mutant | -4/Extension Mutant | -4/Cetus Hacker-Mutant | -4/Archives Hacker-Mutant | -4/Hub_04(d) Scavenger-Gunner | -3/Research Scavenger-Gunner | -3/Armory Scavenger-Mutant | -3/Lab Resources | -11 -10 -10 -10 -9 -8 -7 -7 -7 -7 -7 -6 -6 -6 -6 -6 -5 -5 -5 -5 -5 -4 -4 -4 -4 -4 -4 -3 -3 -3 ----------- Run | Jun Mat Min Exi Min Mat Fac Low Low Zio Dee Pro Fac Low Low Dat Pro Fac Upp Upp War Pro Fac Ext Cet Arc Hub Res Arm Lab Matter Collected 6025 | 187 326 84 . 197 424 730 272 478 10 895 40 471 102 356 . 21 137 . 200 157 10 30 40 26 70 29 211 522 . Remotely . | . . . . . . . . . . . . . . . . . . . . . . . . . . . . . . Salvage Created 8513 | . 582 152 . 202 620 776 296 659 . 730 40 471 28 409 . 21 237 . 294 432 73 146 565 166 48 38 885 643 . Parts 424 | . 35 10 . 14 35 51 12 27 . 55 3 21 2 18 . 3 12 . 12 21 2 6 14 5 1 2 28 35 . Haulers Intercepted 2 | . . . . . 1 1 . . . . . . . . . . . . . . . . . . . . . . . Recyclers Shooed 7 | . 4 1 . . . 1 . . . . . . . . . . . . . . . . 1 . . . . . . Parts Field Recycled . | . . . . . . . . . . . . . . . . . . . . . . . . . . . . . . Retrieved Matter . | . . . . . . . . . . . . . . . . . . . . . . . . . . . . . . Parts Self-Destructed 63 | . . . . . . . 8 27 . . 3 . . 6 . 7 . 1 10 . 1 . . . . . . . . Prevented . | . . . . . . . . . . . . . . . . . . . . . . . . . . . . . . Kills | -11 -10 -10 -10 -9 -8 -7 -7 -7 -7 -7 -6 -6 -6 -6 -6 -5 -5 -5 -5 -5 -4 -4 -4 -4 -4 -4 -3 -3 -3 ------- Run | Jun Mat Min Exi Min Mat Fac Low Low Zio Dee Pro Fac Low Low Dat Pro Fac Upp Upp War Pro Fac Ext Cet Arc Hub Res Arm Lab Combat Hostiles Destroyed 172 | . 10 5 . 6 12 5 5 14 . 14 1 3 . 4 . . . . 8 24 3 4 15 2 1 2 12 22 . Melee 1 | . . . . . . . . . . . . . . . . . . . . . . 1 . . . . . . . Guns 101 | . 10 3 . . 12 5 5 14 . 14 1 3 . 4 . . . . 8 . . . 5 . 1 1 8 7 . Cannons 12 | . . . . . . . . . . . . . . . . . . . . 3 2 2 . 1 . . 2 2 . AOE 58 | . . 2 . 6 . . . . . . . . . . . . . . . 21 1 1 10 1 . 1 2 13 . Classes Destroyed 26 | . 3 3 . 1 4 2 1 1 . 2 . . . 3 . 1 . . . 2 . . 1 . . 1 . 1 . Worker 11 | . . . . 1 . 4 . . . . . . . . . . 1 . . . . 1 . . . 2 2 . . Builder 7 | . 1 . . . . 2 . . . . . . . . . . 2 . . . . . 2 . . . . . . Tunneler 1 | . . 1 . . . . . . . . . . . . . . . . . . . . . . . . . . . Hauler 2 | . . . . . 1 1 . . . . . . . . . . . . . . . . . . . . . . . Recycler 9 | . 2 . . . . 2 . . . . . 1 . . . . 1 . . . . . 1 . . . 2 . . Minesweeper 1 | . . . . . . . . . . . . . . . . 1 . . . . . . . . . . . . . Mechanic 3 | . . . . . . 1 . . . . . 2 . . . . . . . . . . . . . . . . . Operator 6 | . . . . . 1 2 . . . . . . . . . . . . . . . . 2 . . . 1 . . Watcher 9 | . . . . . 1 2 . . . . . 2 . . . . 1 . . . . . . 1 . . . 2 . Swarmer 34 | . . 2 . 2 3 . 4 4 . . . . . . . . . . 6 7 2 . . . . . 1 3 . Saboteur 4 | . . . . . . . . . . . . . . . . . . . . . . . . . . . . 4 . Grunt 61 | . 10 2 . 5 6 . . 8 . . . 2 . 4 . . . . 1 7 . 2 2 . . . 7 5 . Brawler 4 | . . . . . . . . 1 . . . . . . . . . . . 1 . . 1 . . . . 1 . Duelist 6 | . . . . . . . . . . . . . . . . . . . . 1 . . . . . . . 5 . Protector 3 | . . . . . . . . . . . . . . . . . . . . 1 . . . . . . . 2 . Researcher 1 | . . . . . . . . . . . . . . 1 . . . . . . . . . . . . . . . Sentry 17 | . . 1 . . 2 4 . 1 . . . . . . . . . . 1 . 1 . 5 . 1 . 1 . . Hunter 8 | . . . . . 1 . 1 . . . . 1 . . . . . . . 4 . . . . . 1 . . . Programmer 13 | . . . . . . 1 . . . . 1 . . . . . . . . 3 . 2 2 . . . 2 2 . Heavy 1 | . . . . . . . . . . . . . . . . . . . . . . . . . . 1 . . . Behemoth 3 | . . . . . . . . . . . . . . . . . . . . . . . 2 . . . 1 . . Cetus Guard 2 | . . . . . . . . . . . . . . . . . . . . . . . . 2 . . . . . Z-Light 10 | . . . . . . . . . . 10 . . . . . . . . . . . . . . . . . . . Decomposer 1 | . . . . . . . . . . . . . 1 . . . . . . . . . . . . . . . . Packrat 1 | . . . . . . . 1 . . . . . . . . . . . . . . . . . . . . . . Samaritan 2 | . . . . . . . . . . . . . . 2 . . . . . . . . . . . . . . . Tinkerer 1 | . . . . . . . . . . . . . . 1 . . . . . . . . . . . . . . . Assembled 3 | . . . . . . . . . . 3 . . . . . . . . . . . . . . . . . . . Savage 2 | . . . . . . . . . . . . . . . . . . . . . . . 2 . . . . . . Butcher 1 | . . . . . . . . . . . . . . . . . . . . . . . 1 . . . . . . Mutant 1 | . . . . . . . 1 . . . . . . . . . . . . . . . . . . . . . . Best Kill Streak 13 | . 6 3 . 3 5 7 4 4 . 5 1 3 . 4 . 1 3 . 5 13 3 3 9 3 1 3 11 6 . Combat Bots Only 13 | . 6 2 . 3 4 2 4 4 . 5 1 2 . 4 . . . . 5 13 3 2 6 2 1 2 8 6 . Max Kills in Single Turn 9 | . 1 1 . 2 1 2 1 1 . 2 1 1 1 1 . 1 1 . 1 9 2 2 2 2 1 3 3 4 . Gunslinging . | . . . . . . . . . . . . . . . . . . . . . . . . . . . . . . Exploded 8 | . . 1 . 2 . . . . . . . . . . . . . . . 8 1 1 2 1 . 1 1 4 . Melee 1 | . . . . . . . . . . . . . . . . . . . . . . 1 . . . . . . . Uniques/NPCs Destroyed 2 | . . . . . . . . . . 1 . . . . . . . . . . . . . 1 . . . . . Z-Imprinter (-7/Deep Caves) A7 (-4/Cetus) Combat | -11 -10 -10 -10 -9 -8 -7 -7 -7 -7 -7 -6 -6 -6 -6 -6 -5 -5 -5 -5 -5 -4 -4 -4 -4 -4 -4 -3 -3 -3 -------- Run | Jun Mat Min Exi Min Mat Fac Low Low Zio Dee Pro Fac Low Low Dat Pro Fac Upp Upp War Pro Fac Ext Cet Arc Hub Res Arm Lab Damage Taken 10139 | . 474 141 . 211 163 174 16 210 . 2470 30 142 . 907 . 315 . . 194 76 34 111 368 86 30 131 593 1880 1383 Core 2156 | . 144 23 . 22 . 17 . 17 . 281 30 . . 181 . 71 . . 16 . . 16 30 . . . 54 89 1165 Absorbed by Shields 686 | . . . . . . . . . . 50 . . . . . . . . . 58 10 59 170 29 . . 310 . . Redirected to Shielding 719 | . . . . . . . . . . 307 . 37 . 301 . . . . 74 . . . . . . . . . . Ignored by Resistances 226 | . . . . . . . . . . . . . . . . . . . . . . . . . . . 206 20 . Regen/Repaired (Parts) 2 | . . . . . . . . . . . . . . . . . . . . 2 . . . . . . . . . Core Remaining (%) 76 | 100 . . . 24 100 . . . . . 50 . . . . 70 . . . . 98 . . . . 96 . . . Volleys Fired 436 | . 46 16 . 9 23 42 16 30 . 45 2 22 1 18 . . 3 . 14 6 2 5 35 6 3 9 30 53 . Largest 4 | . 2 2 . 1 1 1 1 1 . 1 1 1 1 3 . . 3 . 4 1 1 1 2 3 1 3 4 3 . Hottest 120 | . 40 40 . 30 60 60 60 120 . 60 60 60 60 60 . . 60 . 80 . . 40 80 80 40 40 78 118 . Shots Fired 679 | . 91 20 . 9 23 42 16 30 . 45 2 22 1 44 . . 9 . 45 6 2 5 44 13 3 13 79 115 . Gun 605 | . 91 18 . . 23 42 16 27 . 45 2 22 1 44 . . 9 . 45 . . 1 33 12 3 8 65 98 . Cannon 3 | . . . . . . . . 3 . . . . . . . . . . . . . . . . . . . . . Launcher 11 | . . 2 . 9 . . . . . . . . . . . . . . . . . . . . . . . . . Special 60 | . . . . . . . . . . . . . . . . . . . . 6 2 4 11 1 . 5 14 17 . Kinetic 545 | . 91 18 . . 23 42 16 27 . 41 2 22 1 44 . . 9 . 45 . . . . . . 1 65 98 . Thermal 3 | . . . . . . . . 3 . . . . . . . . . . . . . . . . . . . . . Explosive 71 | . . 2 . 9 . . . . . . . . . . . . . . . 6 2 4 11 1 . 5 14 17 . Electromagnetic 4 | . . . . . . . . . . 4 . . . . . . . . . . . . . . . . . . . Entropic 56 | . . . . . . . . . . . . . . . . . . . . . . 1 33 12 3 7 . . . Robot Hit Streak 30 | . 7 13 . 3 10 21 4 8 . 8 4 5 3 5 . . 4 . 11 17 19 23 30 18 21 5 15 8 . Robot Miss Streak 11 | . 4 4 . 2 4 6 4 3 . 11 1 4 1 2 . . 1 . 5 . . . 1 . . 1 4 2 . Penetration Max 1 | . . . . . . . . . . . . . . . . . . . . . . . . . . . 1 1 . Secondary Targets 4 | . . . . . . . . . . . . . . . . . . . 2 . . . . . . . 2 . . Max Gunslinging Chain 1 | . . . . . . . . . . . . . . . . . . . 1 . . . . . . . 1 . . Shots Hit Robots 500 | . 55 14 . 4 23 29 16 28 . 38 2 22 1 38 . 4 12 . 21 6 2 5 38 21 3 8 44 66 . Core Hits 405 | . 31 9 . 16 23 25 10 24 . 33 1 16 1 14 . 1 5 . 11 32 4 5 37 8 2 7 36 54 . Critical Kills 2 | . . . . . . . . . . . . . . . . . . . . . . . . . . . . 2 . Critical Parts Destroyed 9 | . . . . . . . . . . . . . . . . . . . . . . . 2 1 . . . 6 . Critical Strikes 23 | . . . . . . . . . . . . . . . . . . . . 1 . . 5 1 . 1 1 14 . Destroy 9 | . . . . . . . . . . . . . . . . . . . . . . . . . . . . 9 . Sever 11 | . . . . . . . . . . . . . . . . . . . . 1 . . 3 . . 1 1 5 . Detonate 3 | . . . . . . . . . . . . . . . . . . . . . . . 2 1 . . . . . Melee Attacks 108 | . . . . . . . 2 2 1 . 9 . 3 8 . 7 29 . . 3 . 2 . 8 . 1 4 12 17 Impact . | . . . . . . . . . . . . . . . . . . . . . . . . . . . . . . Slashing 108 | . . . . . . . 2 2 1 . 9 . 3 8 . 7 29 . . 3 . 2 . 8 . 1 4 12 17 Piercing . | . . . . . . . . . . . . . . . . . . . . . . . . . . . . . . Sneak Attacks 20 | . . . . . . . . . . . . . . 5 . 1 4 . . . . 1 . 8 . 1 . . . Combat Hostiles 1 | . . . . . . . . . . . . . . . . . . . . . . 1 . . . . . . . Follow-up Attacks . | . . . . . . . . . . . . . . . . . . . . . . . . . . . . . . Damage Inflicted 33628 | . 627 365 . 428 1227 1445 623 1246 . 1906 151 1015 21 1467 . 201 550 . 477 3757 265 1028 4740 1437 162 1042 3202 6020 226 Guns 14919 | . 614 125 . . 1193 1437 623 1171 . 1906 151 1015 21 944 . . 99 . 477 . . . 1434 626 162 191 1291 1439 . Cannons 75 | . . . . . . . . 75 . . . . . . . . . . . . . . . . . . . . . Explosions 13952 | . . 234 . 421 . . . . . . . . . . . . . . . 3458 167 759 2782 293 . 551 1394 3893 . Melee 1811 | . . . . . . . . . . . . . . 523 . 201 451 . . . . 64 . 474 . 98 . . . Ramming 304 | . 13 6 . 7 34 8 . . . . . . . . . . . . . . . . . . . . 10 . 226 Kinetic 12452 | . 614 125 . . 1193 1437 623 1171 . 1852 151 1015 21 944 . . 99 . 477 . . . . . . . 1291 1439 . Thermal 564 | . . . . . . . . 75 . . . . . . . . . . . . . . 196 293 . . . . . Explosive 13463 | . . 234 . 421 . . . . . . . . . . . . . . . 3458 167 759 2586 . . 551 1394 3893 . Electromagnetic 54 | . . . . . . . . . . 54 . . . . . . . . . . . . . . . . . . . Impact . | . . . . . . . . . . . . . . . . . . . . . . . . . . . . . . Slashing 4378 | . . . . . . . . . . . . . . 523 . 201 451 . . 299 98 269 524 518 . 300 507 688 . Piercing . | . . . . . . . . . . . . . . . . . . . . . . . . . . . . . . Entropic 2413 | . . . . . . . . . . . . . . . . . . . . . . . 1434 626 162 191 . . . Highest Corruption 60 | . 1 1 1 1 . . . . . . . . . . . . . . . 1 1 . 2 2 2 2 3 9 60 Average Corruption 7 | . 1 1 1 1 . . . . . . . . . . . . . . . 1 1 . 1 2 2 2 2 4 27 Corruption Purged . | . . . . . . . . . . . . . . . . . . . . . . . . . . . . . . Corruption Blocked . | . . . . . . . . . . . . . . . . . . . . . . . . . . . . . . Effects 110 | . 3 7 6 3 . . . . . . . . . . . . . . . 2 . . 6 2 2 1 7 25 46 Message Errors 30 | . . . 1 1 . . . . . . . . . . . . . . . . . . 1 1 1 1 4 6 14 Matter Fused 20 | . . 2 5 1 . . . . . . . . . . . . . . . 1 . . 1 . 1 . 1 6 2 Heat Flow Errors 14 | . . 1 . . . . . . . . . . . . . . . . . 1 . . 2 . . . . 2 8 Energy Discharges 12 | . 1 1 . . . . . . . . . . . . . . . . . . . . 1 . . . 1 1 7 Parts Rejected 3 | . . 1 . . . . . . . . . . . . . . . . . . . . 1 . . . . 1 . Parts Fused 3 | . . . . . . . . . . . . . . . . . . . . . . . . 1 . . . 1 1 Data Loss (minor) 19 | . 1 2 . . . . . . . . . . . . . . . . . . . . . . . . 1 4 11 Data Loss (major) 1 | . . . . . . . . . . . . . . . . . . . . . . . . . . . . . 1 Misfires 1 | . . . . . . . . . . . . . . . . . . . . . . . . . . . . 1 . Alerts 4 | . . . . 1 . . . . . . . . . . . . . . . . . . . . . . . 1 2 Weapon Failures 3 | . 1 . . . . . . . . . . . . . . . . . . . . . . . . . . 2 . Overload Shots . | . . . . . . . . . . . . . . . . . . . . . . . . . . . . . . Overflow Damage 1020 | . . 35 . . . . . . . . . . . 124 . 77 149 . . 129 . 102 101 . . 67 147 89 . Projectiles 156 | . . . . . . . . . . . . . . . . . . . . . . 52 64 . . 2 36 2 . Explosions 432 | . . 35 . . . . . . . . . . . . . . . . . 129 . 26 37 . . 7 111 87 . Melee 432 | . . . . . . . . . . . . . . 124 . 77 149 . . . . 24 . . . 58 . . . Knockbacks 1 | . . 1 . . . . . . . . . . . . . . . . . . . . . . . . . . . Impact 1 | . . 1 . . . . . . . . . . . . . . . . . . . . . . . . . . . Kinetic . | . . . . . . . . . . . . . . . . . . . . . . . . . . . . . . Secondary . | . . . . . . . . . . . . . . . . . . . . . . . . . . . . . . Self-Inflicted Damage 250 | . . 8 . 16 . . . . . . . . . . . . . . . . . . . . . . . . 226 Shots 3 | . . 1 . 2 . . . . . . . . . . . . . . . . . . . . . . . . . Rammed 19 | . 4 3 . 3 6 1 . . . 1 . . . . . . . . . . . . . . . . 1 . . Targets Rammed 20 | . 4 4 . 3 6 1 . . . 1 . . . . . . . . . . . . . . . . 1 . . Kicked . | . . . . . . . . . . . . . . . . . . . . . . . . . . . . . . Crushed 1 | . . 1 . . . . . . . . . . . . . . . . . . . . . . . . . . . Highest Temperature 423 | . 12 165 . 10 423 129 115 192 . 369 92 326 49 284 108 83 64 203 335 270 . . 206 . . . 45 349 250 Average Temperature 80 | . 7 61 . 5 134 44 51 84 . 98 49 131 27 71 56 33 17 87 104 141 . . 95 . . . 26 103 94 Received Heat Transfer 2102 | . 243 54 . 78 45 54 . 63 . 543 . . . 297 . . . . . . 7 34 26 4 . . 125 529 . Effects 5 | . . . . . 1 . . . . 2 . . . . . . . . 1 . . . . . . . . 1 . Shutdowns 2 | . . . . . 1 . . . . . . . . . . . . . . . . . . . . . . 1 . Interference 3 | . . . . . . . . . . 2 . . . . . . . . 1 . . . . . . . . . . Siege Activations . | . . . . . . . . . . . . . . . . . . . . . . . . . . . . . . Robots Corrupted . | . . . . . . . . . . . . . . . . . . . . . . . . . . . . . . Combat Hostiles . | . . . . . . . . . . . . . . . . . . . . . . . . . . . . . . Parts Fried 1 | . . . . . . . . . . . . . . . . . . . . . . . . 1 . . . . . Impact Corruptions . | . . . . . . . . . . . . . . . . . . . . . . . . . . . . . . Robots Melted . | . . . . . . . . . . . . . . . . . . . . . . . . . . . . . . Combat Hostiles . | . . . . . . . . . . . . . . . . . . . . . . . . . . . . . . Parts Melted . | . . . . . . . . . . . . . . . . . . . . . . . . . . . . . . Heat Transferred 560 | . . . . . . . . 160 . . . . . . . . . . . . . . 200 200 . . . . . Parts Sabotaged . | . . . . . . . . . . . . . . . . . . . . . . . . . . . . . . Parts Stolen 10 | . . . . . . . . 1 . . . . . 3 . . . . 6 . . . . . . . . . . Parts Stripped . | . . . . . . . . . . . . . . . . . . . . . . . . . . . . . . Power Chain Reactions . | . . . . . . . . . . . . . . . . . . . . . . . . . . . . . . Missiles Intercepted . | . . . . . . . . . . . . . . . . . . . . . . . . . . . . . . Alert | -11 -10 -10 -10 -9 -8 -7 -7 -7 -7 -7 -6 -6 -6 -6 -6 -5 -5 -5 -5 -5 -4 -4 -4 -4 -4 -4 -3 -3 -3 ------- Run | Jun Mat Min Exi Min Mat Fac Low Low Zio Dee Pro Fac Low Low Dat Pro Fac Upp Upp War Pro Fac Ext Cet Arc Hub Res Arm Lab Peak Influence 1264 | . 335 193 . 355 466 347 . . . . . 199 . . . . 181 . . . . 324 710 532 359 575 827 1264 . Initial 434 | . . 54 . . 138 153 . . . . . 18 . . . . 9 . . . . 49 156 336 212 125 301 434 . Average 313 | . 157 105 . 196 254 230 . . . . . 102 . . . . 97 . . . . 161 495 474 326 370 444 650 . Maximum Alert Level 4 | . 1 . . 1 2 1 . . . . . . . . . . . . . . . 1 3 2 1 2 3 4 . Low Security (%) 38 | . 59 100 . 41 40 27 . . . . . 100 . . . . 100 . . . . 73 5 . . 16 . . . Level 1 29 | . 40 . . 58 54 72 . . . . . . . . . . . . . . . 26 13 8 100 46 40 . . Level 2 27 | . . . . . 4 . . . . . . . . . . . . . . . . . 78 91 . 37 49 75 . Level 3 3 | . . . . . . . . . . . . . . . . . . . . . . . 2 . . . 9 18 . Level 4 . | . . . . . . . . . . . . . . . . . . . . . . . . . . . . 5 . Level 5 . | . . . . . . . . . . . . . . . . . . . . . . . . . . . . . . High Security . | . . . . . . . . . . . . . . . . . . . . . . . . . . . . . . Max Security . | . . . . . . . . . . . . . . . . . . . . . . . . . . . . . . Squads Dispatched 20 | . 1 . . . 1 1 . . . . . 1 . . . . . . . . . 1 2 . . 3 6 4 . Investigation 1 | . . . . . . . . . . . . . . . . . . . . . . . 1 . . . . . . Extermination 4 | . . . . . . 1 . . . . . . . . . . . . . . . . . . . 1 1 1 . Reinforcement 10 | . 1 . . . 1 . . . . . . . . . . . . . . . . 1 . . . 2 4 1 . Assault 3 | . . . . . . . . . . . . . . . . . . . . . . . 1 . . . . 2 . Garrison 2 | . . . . . . . . . . . . 1 . . . . . . . . . . . . . . 1 . . Intercept . | . . . . . . . . . . . . . . . . . . . . . . . . . . . . . . Searches Triggered . | . . . . . . . . . . . . . . . . . . . . . . . . . . . . . . Data Miner Redirects 1 | . . . . . . . . . . . . . . . . . . . . . . . 1 . . . . . . Construction Impeded 1 | . . . . . 1 . . . . . . . . . . . . . . . . . . . . . . . . Haulers Reinforced 1 | . . . . . . . . . . . . . . . . . . . . . . . . . . . 1 . . Active Scanning Responses . | . . . . . . . . . . . . . . . . . . . . . . . . . . . . . . Cargo Convoy Interrupts . | . . . . . . . . . . . . . . . . . . . . . . . . . . . . . . Stealth | -11 -10 -10 -10 -9 -8 -7 -7 -7 -7 -7 -6 -6 -6 -6 -6 -5 -5 -5 -5 -5 -4 -4 -4 -4 -4 -4 -3 -3 -3 --------- Run | Jun Mat Min Exi Min Mat Fac Low Low Zio Dee Pro Fac Low Low Dat Pro Fac Upp Upp War Pro Fac Ext Cet Arc Hub Res Arm Lab Distress Signals 9 | . 2 . . . 1 2 . . . . . . . . . . . . . 1 . . . 1 . . 1 1 . Communications Jammed . | . . . . . . . . . . . . . . . . . . . . . . . . . . . . . . Distress Signals . | . . . . . . . . . . . . . . . . . . . . . . . . . . . . . . Times Spotted 249 | . 17 10 . 11 14 11 3 17 . 16 1 6 . 7 . 8 4 . 12 16 3 9 19 6 3 8 16 32 . Peak Tracking Total 10 | . 7 3 . 3 4 2 3 4 . 5 1 2 . 4 . 5 3 . 4 10 3 4 5 5 2 5 5 9 . Tactical Retreats 10 | . . . . 1 . . . . . 1 . . . . . 1 2 . . 1 . 1 1 . . . 1 1 . Traps | -11 -10 -10 -10 -9 -8 -7 -7 -7 -7 -7 -6 -6 -6 -6 -6 -5 -5 -5 -5 -5 -4 -4 -4 -4 -4 -4 -3 -3 -3 ------- Run | Jun Mat Min Exi Min Mat Fac Low Low Zio Dee Pro Fac Low Low Dat Pro Fac Upp Upp War Pro Fac Ext Cet Arc Hub Res Arm Lab Traps Triggered 6 | . 3 . . . . 1 . . . . . 1 . . . . . . . . . . . . . . 1 . . Indirectly . | . . . . . . . . . . . . . . . . . . . . . . . . . . . . . . Trap Hack Attempts . | . . . . . . . . . . . . . . . . . . . . . . . . . . . . . . Triggered . | . . . . . . . . . . . . . . . . . . . . . . . . . . . . . . Disarmed . | . . . . . . . . . . . . . . . . . . . . . . . . . . . . . . Reprogrammed 2 | . . . . . . . . . . . . . . . . . . . . . . . 2 . . . . . . Reused . | . . . . . . . . . . . . . . . . . . . . . . . . . . . . . . Traps Extracted . | . . . . . . . . . . . . . . . . . . . . . . . . . . . . . . Installed . | . . . . . . . . . . . . . . . . . . . . . . . . . . . . . . Triggered 17 | . . . . . . . 1 . . . . . . . . . . 1 . 15 . . . . . . . . . Most Traps Carried 4 | . . 4 4 4 4 4 4 4 2 2 . . . . . . . . . . . . . . . . . . . Machines | -11 -10 -10 -10 -9 -8 -7 -7 -7 -7 -7 -6 -6 -6 -6 -6 -5 -5 -5 -5 -5 -4 -4 -4 -4 -4 -4 -3 -3 -3 ---------- Run | Jun Mat Min Exi Min Mat Fac Low Low Zio Dee Pro Fac Low Low Dat Pro Fac Upp Upp War Pro Fac Ext Cet Arc Hub Res Arm Lab Machines Disabled 29 | . . . . . 3 3 . . . 1 . 2 . . . . 1 . . . . . 3 . . . 6 10 . Max in Single Turn 2 | . . . . . 1 1 . . . 1 . 1 . . . . 1 . . . . . 1 . . . 2 2 . Garrison Access 1 | . . . . . . . . . . . . . . . . . 1 . . . . . . . . . . . . Machines Repaired . | . . . . . . . . . . . . . . . . . . . . . . . . . . . . . . Machines Sabotaged . | . . . . . . . . . . . . . . . . . . . . . . . . . . . . . . Overloaded Fab Kills . | . . . . . . . . . . . . . . . . . . . . . . . . . . . . . . Hacking | -11 -10 -10 -10 -9 -8 -7 -7 -7 -7 -7 -6 -6 -6 -6 -6 -5 -5 -5 -5 -5 -4 -4 -4 -4 -4 -4 -3 -3 -3 --------- Run | Jun Mat Min Exi Min Mat Fac Low Low Zio Dee Pro Fac Low Low Dat Pro Fac Upp Upp War Pro Fac Ext Cet Arc Hub Res Arm Lab Machines Accessed 54 | . 4 . 2 . 3 2 . 1 . . . 3 2 2 4 . 7 . . 6 . 1 6 1 . 6 . 3 1 Terminals 31 | . 4 . . . 3 2 . . . . . 1 . . . . 4 . . . . 1 6 1 . 6 . 3 . Fabricators 2 | . . . . . . . . . . . . 1 . . . . 1 . . . . . . . . . . . . Repair Stations . | . . . . . . . . . . . . . . . . . . . . . . . . . . . . . . Recycling Units . | . . . . . . . . . . . . . . . . . . . . . . . . . . . . . . Scanalyzers . | . . . . . . . . . . . . . . . . . . . . . . . . . . . . . . Garrison Access 3 | . . . . . . . . . . . . 1 . . . . 2 . . . . . . . . . . . . Total Hacks 160 | . 10 . 5 . 10 9 . 1 . . . 5 5 7 31 . 13 . . 16 . 3 14 3 . 17 . 7 4 Successful 104 | . 3 . 5 . 4 6 . 1 . . . 1 5 7 31 . 5 . . 16 . 1 4 . . 9 . 2 4 Failed 55 | . 7 . . . 5 3 . . . . . 4 . . . . 8 . . . . 2 10 3 . 8 . 5 . Catastrophic 14 | . 3 . . . . 1 . . . . . 1 . . . . 3 . . . . . 2 . . 3 . 1 . Database Lockouts 1 | . . . . . 1 . . . . . . . . . . . . . . . . . . . . . . . . Manual 59 | . 8 . 1 . 9 5 . . 4 . . 2 . . . . 1 . . 1 . 3 6 1 . 13 . 5 . Terminals 80 | . 10 . . . 10 9 . . . . . 1 . . . . 6 . . . . 3 14 3 . 17 . 7 . Fabricators 5 | . . . . . . . . . . . . 2 . . . . 3 . . . . . . . . . . . . Repair Stations . | . . . . . . . . . . . . . . . . . . . . . . . . . . . . . . Recycling Units . | . . . . . . . . . . . . . . . . . . . . . . . . . . . . . . Scanalyzers . | . . . . . . . . . . . . . . . . . . . . . . . . . . . . . . Garrison Access 6 | . . . . . . . . . . . . 2 . . . . 4 . . . . . . . . . . . . Terminal Hacks 91 | . 2 . 5 . 2 4 . 1 . . . . 5 7 31 . 2 . . 16 . 1 3 . . 6 . 2 4 Record 41 | . . . 4 . . . . . . . . . 4 6 11 . . . . 11 . . . . . 1 . . 4 Part Schematic 12 | . . . . . 1 . . . . . . . . . 11 . . . . . . . . . . . . . . Robot Schematic 7 | . 1 . . . . . . . . . . . . . 6 . . . . . . . . . . . . . . Robot Analysis 1 | . . . . . . . . . . . . . . . . . 1 . . . . . . . . . . . . Prototype ID Bank 8 | . . . . . . 1 . . . . . . . . 3 . . . . 4 . . . . . . . . . Open Door 4 | . . . . . . . . 1 . . . . 1 1 . . . . . 1 . . . . . . . . . Level Access Points 1 | . . . . . . . . . . . . . . . . . . . . . . . . . . 1 . . . Branch Access Points 5 | . 1 . . . 1 1 . . . . . . . . . . . . . . . 1 . . . 1 . . . Emergency Access Points 1 | . . . . . . . . . . . . . . . . . . . . . . . . . . . . 1 . Machine Index 1 | . . . . . . . . . . . . . . . . . . . . . . . . . . 1 . . . Terminal Index 3 | . . . . . . 1 . . . . . . . . . . . . . . . . 1 . . 1 . . . Locate Traps 2 | . . . . . . . . . . . . . . . . . 1 . . . . . 1 . . . . . . Reprogram Traps 1 | . . . . . . . . . . . . . . . . . . . . . . . 1 . . . . . . Zone Layout 3 | . . . . . . 1 . . . . . . . . . . . . . . . . . . . 1 . 1 . Derelict Proto ID Bank 1 | . . . 1 . . . . . . . . . . . . . . . . . . . . . . . . . . Fabricator Hacks 2 | . . . . . . . . . . . . 1 . . . . 1 . . . . . . . . . . . . Network Status 1 | . . . . . . . . . . . . 1 . . . . . . . . . . . . . . . . . Build 1 | . . . . . . . . . . . . . . . . . 1 . . . . . . . . . . . . Repair Station Hacks . | . . . . . . . . . . . . . . . . . . . . . . . . . . . . . . Recycling Unit Hacks . | . . . . . . . . . . . . . . . . . . . . . . . . . . . . . . Scanalyzer . | . . . . . . . . . . . . . . . . . . . . . . . . . . . . . . Garrison Access Hacks 1 | . . . . . . . . . . . . . . . . . 1 . . . . . . . . . . . . Seal Access 1 | . . . . . . . . . . . . . . . . . 1 . . . . . . . . . . . . Unauthorized Hacks 10 | . 1 . . . 2 2 . . . . . . . . . . 1 . . . . . 1 . . 3 . . . Terminals 10 | . 1 . . . 2 2 . . . . . . . . . . 1 . . . . . 1 . . 3 . . . Assimilate 1 | . . . . . . 1 . . . . . . . . . . . . . . . . . . . . . . . Botnet 8 | . 1 . . . 2 1 . . . . . . . . . . 1 . . . . . 1 . . 2 . . . Detonate 1 | . . . . . . . . . . . . . . . . . . . . . . . . . . 1 . . . Fabricators . | . . . . . . . . . . . . . . . . . . . . . . . . . . . . . . Repair Stations . | . . . . . . . . . . . . . . . . . . . . . . . . . . . . . . Recycling Units . | . . . . . . . . . . . . . . . . . . . . . . . . . . . . . . Scanalyzers . | . . . . . . . . . . . . . . . . . . . . . . . . . . . . . . Garrison Access . | . . . . . . . . . . . . . . . . . . . . . . . . . . . . . . Data Cores Recovered 4 | . . . . . 1 2 . . . . . . . . . . . . . . . . 1 . . . . . . Used . | . . . . . . . . . . . . . . . . . . . . . . . . . . . . . . Hacking Detections 35 | . 3 . . . 3 2 . . . . . 3 . . . . 7 . . . . 1 6 1 . 6 . 3 . Full Trace Events 1 | . . . . . . . . . . . . . . . . . . . . . . . 1 . . . . . . Feedback Events . | . . . . . . . . . . . . . . . . . . . . . . . . . . . . . . Feedback Blocked . | . . . . . . . . . . . . . . . . . . . . . . . . . . . . . . Robot Schematics Acquired 10 | . 1 . . . . . . . 3 . . . . . 6 . . . . . . . . . . . . . . Robots Built . | . . . . . . . . . . . . . . . . . . . . . . . . . . . . . . Authchips . | . . . . . . . . . . . . . . . . . . . . . . . . . . . . . . Time . | . . . . . . . . . . . . . . . . . . . . . . . . . . . . . . Total Robot Build Rating . | . . . . . . . . . . . . . . . . . . . . . . . . . . . . . . Part Schematics Acquired 27 | . . . . . 1 . . . 15 . . . . . 11 . . . . . . . . . . . . . . Parts Built 2 | . . . . . . . . . . . . . . . . . 2 . . . . . . . . . . . . Authchips . | . . . . . . . . . . . . . . . . . . . . . . . . . . . . . . Time 139 | . . . . . . . . . . . . . . . . . 139 . . . . . . . . . . . . Total Part Build Rating 18 | . . . . . . . . . . . . . . . . . 18 . . . . . . . . . . . . Parts Repaired . | . . . . . . . . . . . . . . . . . . . . . . . . . . . . . . Time . | . . . . . . . . . . . . . . . . . . . . . . . . . . . . . . Parts Recycled . | . . . . . . . . . . . . . . . . . . . . . . . . . . . . . . Recycled Matter . | . . . . . . . . . . . . . . . . . . . . . . . . . . . . . . Retrieved Matter . | . . . . . . . . . . . . . . . . . . . . . . . . . . . . . . Retrieved Components . | . . . . . . . . . . . . . . . . . . . . . . . . . . . . . . Parts Scanalyzed . | . . . . . . . . . . . . . . . . . . . . . . . . . . . . . . Part Schematics Acquired . | . . . . . . . . . . . . . . . . . . . . . . . . . . . . . . Parts Damaged . | . . . . . . . . . . . . . . . . . . . . . . . . . . . . . . Bothacking | -11 -10 -10 -10 -9 -8 -7 -7 -7 -7 -7 -6 -6 -6 -6 -6 -5 -5 -5 -5 -5 -4 -4 -4 -4 -4 -4 -3 -3 -3 ------------ Run | Jun Mat Min Exi Min Mat Fac Low Low Zio Dee Pro Fac Low Low Dat Pro Fac Upp Upp War Pro Fac Ext Cet Arc Hub Res Arm Lab Used RIF Installer . | . . . . . . . . . . . . . . . . . . . . . . . . . . . . . . Robots Hacked . | . . . . . . . . . . . . . . . . . . . . . . . . . . . . . . Non-combat . | . . . . . . . . . . . . . . . . . . . . . . . . . . . . . . Combat . | . . . . . . . . . . . . . . . . . . . . . . . . . . . . . . Robot Hacks Applied . | . . . . . . . . . . . . . . . . . . . . . . . . . . . . . . Relay Couplers Released . | . . . . . . . . . . . . . . . . . . . . . . . . . . . . . . Fabnet Peak Effective % . | . . . . . . . . . . . . . . . . . . . . . . . . . . . . . . Robots Rewired 7 | . . . . . . . . . . . . . . . . . . . . 6 . . 1 . . . . . . Allies Hacked 3 | . . . . . . . . . . . . . . . . . . . . . . . . . . . . 3 . Hacks Repelled . | . . . . . . . . . . . . . . . . . . . . . . . . . . . . . . Allies | -11 -10 -10 -10 -9 -8 -7 -7 -7 -7 -7 -6 -6 -6 -6 -6 -5 -5 -5 -5 -5 -4 -4 -4 -4 -4 -4 -3 -3 -3 -------- Run | Jun Mat Min Exi Min Mat Fac Low Low Zio Dee Pro Fac Low Low Dat Pro Fac Upp Upp War Pro Fac Ext Cet Arc Hub Res Arm Lab Total Allies 28 | . . 3 . . . 1 . . . . . . . . . 1 . . . 6 . . 2 5 . . . 10 . Largest Group 10 | . . 3 2 1 1 1 . . . . . . . . . 1 . . . 5 4 4 2 5 5 4 2 10 . Highest-Rated Group 543 | . . 40 31 16 16 10 . . . . . . . . . 96 . . . 282 191 191 224 543 480 384 192 481 . Highest-Rated Ally 159 | . . 16 16 16 16 10 . . . . . . . . . 96 . . . 89 65 65 159 159 96 96 96 58 . Total Orders . | . . . . . . . . . . . . . . . . . . . . . . . . . . . . . . Ally Attacks 251 | . . 16 . 19 2 . . . . . . . . . . 4 . . . 30 . 19 19 13 18 39 14 58 . Total Damage 7628 | . . 176 . 179 34 . . . . . . . . . . 161 . . . 1022 . 647 603 473 743 1427 435 1728 . Kills 43 | . . 5 . 5 . . . . . . . . . . . . . . . 6 . 3 2 3 3 8 3 5 . Allies Corrupted . | . . . . . . . . . . . . . . . . . . . . . . . . . . . . . . Allies Melted 1 | . . . . . . . . . . . . . . . . . . . . 1 . . . . . . . . . Intel | -11 -10 -10 -10 -9 -8 -7 -7 -7 -7 -7 -6 -6 -6 -6 -6 -5 -5 -5 -5 -5 -4 -4 -4 -4 -4 -4 -3 -3 -3 ------- Run | Jun Mat Min Exi Min Mat Fac Low Low Zio Dee Pro Fac Low Low Dat Pro Fac Upp Upp War Pro Fac Ext Cet Arc Hub Res Arm Lab Robot Analysis Total 1 | . . . . . . . . . . . . . . . . . 1 . . . . . . . . . . . . Derelict Logs Recovered 17 | . . 2 . 1 . . 1 1 1 . . . 2 2 . 2 . . 3 . 2 . . . . . . . . Drone Launches . | . . . . . . . . . . . . . . . . . . . . . . . . . . . . . . Drone Recoveries . | . . . . . . . . . . . . . . . . . . . . . . . . . . . . . . Exploration | -11 -10 -10 -10 -9 -8 -7 -7 -7 -7 -7 -6 -6 -6 -6 -6 -5 -5 -5 -5 -5 -4 -4 -4 -4 -4 -4 -3 -3 -3 ------------- Run | Jun Mat Min Exi Min Mat Fac Low Low Zio Dee Pro Fac Low Low Dat Pro Fac Upp Upp War Pro Fac Ext Cet Arc Hub Res Arm Lab Turns Passed 15883 | . 471 807 424 259 582 875 860 616 1541 1306 209 150 259 696 21 229 449 119 503 1022 294 246 635 280 101 278 664 831 1156 Spaces Moved 12104 | 1 195 468 260 142 285 501 529 357 963 1367 566 386 801 744 79 474 531 211 420 621 190 142 368 106 54 157 354 412 420 Core 237 | . . . . . . . . . . . . . . . . . . . . . . . . . . . . . 237 Treads 6680 | . 159 468 260 142 285 501 529 357 963 217 . . . . . . . . 212 621 190 142 368 106 54 157 354 412 183 Legs 37 | 1 36 . . . . . . . . . . . . . . . . . . . . . . . . . . . . Wheels . | . . . . . . . . . . . . . . . . . . . . . . . . . . . . . . Hover 5150 | . . . . . . . . . . 1150 566 386 801 744 79 474 531 211 208 . . . . . . . . . . Flight . | . . . . . . . . . . . . . . . . . . . . . . . . . . . . . . Fastest Speed 24 | 120 120 160 160 160 160 156 156 158 158 48 24 24 24 24 26 26 52 52 52 150 153 153 145 145 150 150 150 150 50 Average Speed 106 | 120 159 160 160 162 160 157 157 158 158 74 25 24 24 63 26 37 60 52 101 150 153 153 147 148 150 150 150 150 92 Slowest Speed 240 | 120 190 160 160 240 160 160 158 158 158 158 48 98 24 200 26 88 111 52 240 153 153 153 153 150 150 150 150 150 152 Overloaded Moves . | . . . . . . . . . . . . . . . . . . . . . . . . . . . . . . Propulsion Burnouts . | . . . . . . . . . . . . . . . . . . . . . . . . . . . . . . Robots Hopped . | . . . . . . . . . . . . . . . . . . . . . . . . . . . . . . Cave-ins Triggered . | . . . . . . . . . . . . . . . . . . . . . . . . . . . . . . Exploration Rate (%) 52 | 1 40 89 68 30 29 18 64 55 85 81 75 11 80 72 69 73 18 48 60 83 45 5 66 56 70 21 16 38 95 Regions Visited 29 Branch Regions 22 Pre-discovered Areas 8 | . . 2 1 . . . . . 2 . . . 1 . 1 . . . . . 1 . . . . . . . . Known Exits Taken 17 | . 1 . . . . 1 1 1 1 . . 1 1 1 1 1 1 1 . . 1 1 . . . 1 1 1 . Unknown Exits Taken 12 | 1 . 1 1 1 1 . . . . 1 1 . . . . . . . 1 1 . . 1 1 1 . . . . Scrap Searched 18 | . . 1 . . . . 2 1 2 . . . 6 2 . . . 1 2 . 1 . . . . . . . . Spaces Dug 155 | . . . . 10 . 5 2 1 . . 9 . 3 2 . 1 21 . . 3 . 2 11 . . . 4 66 15 Terrain Destroyed 990 | . . 20 . 90 13 10 6 10 . 11 9 6 3 2 . 1 21 . . 46 24 59 165 31 . 60 188 200 15 Melee 65 | . . . . . . . 2 1 . . 9 . 3 2 . 1 21 . . 3 . 1 . . . . 4 3 15 Projectile 120 | . . . . . 13 10 4 9 . 11 . 6 . . . . . . . . . 1 4 . . 3 22 37 . AOE 805 | . . 20 . 90 . . . . . . . . . . . . . . . 43 24 57 161 31 . 57 162 160 . Terrain Rammed 48 | . . . . . . . . . . . . . . . . . . . . . . . . . . . . . 48 Walls Destroyed . | . . . . . . . . . . . . . . . . . . . . . . . . . . . . . . Machines Disabled . | . . . . . . . . . . . . . . . . . . . . . . . . . . . . . . Actions | -11 -10 -10 -10 -9 -8 -7 -7 -7 -7 -7 -6 -6 -6 -6 -6 -5 -5 -5 -5 -5 -4 -4 -4 -4 -4 -4 -3 -3 -3 --------- Run | Jun Mat Min Exi Min Mat Fac Low Low Zio Dee Pro Fac Low Low Dat Pro Fac Upp Upp War Pro Fac Ext Cet Arc Hub Res Arm Lab Total 14635 | . 270 506 270 159 408 589 556 407 984 1649 616 440 862 940 78 514 613 219 488 702 191 162 414 206 72 187 437 531 1165 Wait 1415 | . 8 2 . 5 72 21 1 . . 139 35 18 53 127 . 32 31 9 27 25 . 4 3 80 . 19 26 21 657 Move 12075 | . 194 467 259 141 284 500 528 356 962 1366 565 385 800 743 78 473 530 210 419 620 189 141 367 105 53 156 353 411 420 Hop . | . . . . . . . . . . . . . . . . . . . . . . . . . . . . . . Pick Up 105 | . 7 9 3 . 6 6 1 4 8 21 . 2 . 6 . . 2 . 1 10 . . 2 2 1 . 5 5 4 Fast Attach 114 | . 4 1 . 1 3 3 1 1 4 35 1 6 1 13 . . 5 . 9 7 . . 2 1 3 . 5 7 1 Attach 59 | . 2 1 2 . 2 2 1 5 . 7 1 1 1 6 . . 6 . 6 . . 2 1 . 3 2 5 3 . Detach 34 | . . . . . . . 1 1 1 3 1 . 1 6 . 2 4 . 1 4 . . . . 3 . 2 2 2 Swap 39 | . . 3 1 . 4 5 2 . . 3 1 . 1 4 . . . . 1 1 . 1 2 . 2 . 4 4 . Drop 153 | . 5 3 5 . 8 9 3 8 8 29 1 6 1 9 . . 3 . 10 6 . . . 4 4 . 2 12 17 Fire 436 | . 46 16 . 9 23 42 16 30 . 45 2 22 1 18 . . 3 . 14 6 2 5 35 6 3 9 30 53 . Melee 108 | . . . . . . . 2 2 1 . 9 . 3 8 . 7 29 . . 3 . 2 . 8 . 1 4 12 17 Ram 47 | . . . . . . . . . . . . . . . . . . . . . . . . . . . . . 47 Kick . | . . . . . . . . . . . . . . . . . . . . . . . . . . . . . . Crush 20 | . 4 4 . 3 6 1 . . . 1 . . . . . . . . . . . . . . . . 1 . . Escape Stasis . | . . . . . . . . . . . . . . . . . . . . . . . . . . . . . . Rewire 30 | . . . . . . . . . . . . . . . . . . . . 20 . 7 2 . . . . 1 . Trap . | . . . . . . . . . . . . . . . . . . . . . . . . . . . . . . Miscellaneous . | . . . . . . . . . . . . . . . . . . . . . . . . . . . . . . Route ------- -11/Junkyard -10/Materials (discovered 2 exits: *Min x2) -10/Mines (discovered 3 exits: [*Mat x2] / *Exi) -10/Exiles -9/Mines -8/Materials (discovered 3 exits: *Fac / Sto x2) -7/Factory (discovered 2 exits: *Low x2) -7/Lower Caves -7/Lower Caves -7/Zion (discovered 2 exits: *Dee / [*Pro]) -7/Deep Caves -6/Proximity Caves -6/Factory (discovered 2 exits: Fac / *Low) -6/Lower Caves -6/Lower Caves (discovered 2 exits: *Fac / *Dat) -6/Data Miner -5/Proximity Caves -5/Factory (discovered 4 exits: Fac x3 / *Upp) -5/Upper Caves -5/Upper Caves (discovered 2 exits: *Fac / *War) -5/Warlord -4/Proximity Caves -4/Factory (discovered 4 exits: Upp x2 / *Ext x2) -4/Extension (discovered 2 exits: *Res / *Cet) -4/Cetus -4/Archives -4/Hub_04(d) (discovered 4 exits: *Res x4) -3/Research (discovered 2 exits: *Arm / Tes) -3/Armory -3/Lab (discovered 1 exit: *Res) History --------- Turn | Location | Event 1 | -11/Junkyard | Discovered new exit (range 0) 1 | -11/Junkyard | Entered Materials 194 | -10/Materials | Core integrity fell below 50% 316 | -10/Materials | Build established: Mutant 416 | -10/Materials | Identified exit to Mines 472 | -10/Materials | Entered Mines 473 | -10/Mines | Learned location of Storage (-8) 511 | -10/Mines | Discovered new exit (range 8) 538 | -10/Mines | Assisted by bots powering up and referring to "LRC-V3" 746 | -10/Mines | Joined a pair of Derelicts in attacking an 0b10 outpost 971 | -10/Mines | Found a damaged Exp. Sensor Array with a note attached 974 | -10/Mines | Found Prototype Device 1070 | -10/Mines | Found a hidden stash of uninstalled traps 1117 | -10/Mines | Learned Materials terminal intel 1142 | -10/Mines | Discovered new exit (range 5) 1272 | -10/Mines | Deemed a non-threat by the Exiles lab entrance 1272 | -10/Mines | Discovered new exit (range 5) 1279 | -10/Mines | Entered Exiles 1279 | -10/Exiles | Accompanied by 2 allies 1318 | -10/Exiles | Met 8R-AWN 1347 | -10/Exiles | Met EX-HEX 1391 | -10/Exiles | Met EX-BIN 1414 | -10/Exiles | Aligned with FarCom system 1415 | -10/Exiles | Given EX-Vault access code 1455 | -10/Exiles | Opened EX-Vault 1463 | -10/Exiles | Found Field Lobotomy Kit 1471 | -10/Exiles | Found Gui. Plasma Cannon 1476 | -10/Exiles | Found XL Autogun Array 1509 | -10/Exiles | Warned to stay clear of 0b10 Research branches 1615 | -10/Exiles | Met EX-DEC 1642 | -10/Exiles | Learned location of Zion (-7) 1690 | -10/Exiles | Discovered new exit (range 10) 1703 | -10/Exiles | Stole three prototypes: Gui. Plasma Cannon, XL Autogun Array, Field Lobotomy Kit 1703 | -10/Exiles | Entered Mines 1703 | -9/Mines | Accompanied by 2 allies 1770 | -9/Mines | Assembled infested the area 1933 | -9/Mines | Discovered new exit (range 13) 1962 | -9/Mines | Entered Materials 1962 | -8/Materials | Accompanied by 1 ally 1962 | -8/Materials | Evolved 4 slots: Propulsion x1, Utility x1, Weapon x2 1963 | -8/Materials | Identified exit to Storage 1964 | -8/Materials | Loaded intel: 12 terminal locations 1987 | -8/Materials | Central database locked down 2391 | -8/Materials | Build established: Scavenger-Skirmisher 2448 | -8/Materials | Discovered new exit (range 4) 2544 | -8/Materials | Entered Factory 2544 | -7/Factory | Evolved 2 slots: Propulsion x1, Utility x1 2546 | -7/Factory | FarCom data flow suspended 2700 | -7/Factory | Identified Exp. Sensor Array 2734 | -7/Factory | Identified exit to Lower Caves 3419 | -7/Factory | Entered Lower Caves 3735 | -7/Lower Caves | Encountered a Warlord checkpoint 3830 | -7/Lower Caves | Discovered new exit (range 9) 3849 | -7/Lower Caves | Identified exit to Lower Caves 4279 | -7/Lower Caves | Entered another Lower Caves area 4279 | -7/Lower Caves | Spotted CJ-RK7(f) 4279 | -7/Lower Caves | Spotted Z8-158(f) 4280 | -7/Lower Caves | Encountered a Master Thief 4280 | -7/Lower Caves | Encountered a Master Thief 4282 | -7/Lower Caves | Exp. Sensor Array stolen by Master Thief 4363 | -7/Lower Caves | Attracted the attention of an 0b10 checkpoint 4388 | -7/Lower Caves | Learned location of 1 exit from Factory 4630 | -7/Lower Caves | Build established: Scavenger-Tank 4851 | -7/Lower Caves | Discovered new exit (range 15) 4873 | -7/Lower Caves | Identified exit to Zion 4895 | -7/Lower Caves | Entered Zion 4935 | -7/Zion | Acquired unknown access codes intercepted by a Zionite 4986 | -7/Zion | Discovered new exit (range 12) 5427 | -7/Zion | Learned location of Armory (-3) 5860 | -7/Zion | Given the Hacking Drone Bay 5861 | -7/Zion | Found Prototype Device 6256 | -7/Zion | Build established: Scavenger-Mutant 6403 | -7/Zion | Opened final containment barrier to the Deep Caves 6430 | -7/Zion | Discovered new exit (range 5) 6433 | -7/Zion | Saw the warning signs outside the Deep Caves entrance 6435 | -7/Zion | Identified exit to Deep Caves 6436 | -7/Zion | Entered Deep Caves 6576 | -7/Deep Caves | Build established: Scavenger-Tank 6609 | -7/Deep Caves | Identified Hacking Drone Bay 6669 | -7/Deep Caves | Attacked by Z-Imprinter 6697 | -7/Deep Caves | Destroyed Z-Imprinter 6707 | -7/Deep Caves | Found Prototype Protection 6707 | -7/Deep Caves | Identified Zio. Weapon Casing 6711 | -7/Deep Caves | Found Prototype Device 6711 | -7/Deep Caves | Identified Zio. Metafield Generator 6795 | -7/Deep Caves | Z-Facility disabled 6846 | -7/Deep Caves | Lost 3 parts (1n2u) 6898 | -7/Deep Caves | Found Zio. Weapon Casing 7137 | -7/Deep Caves | Spotted as-70662 7171 | -7/Deep Caves | Lost 5 parts (2n2u1w) 7237 | -7/Deep Caves | Lost 9 parts (1p1n4u3w) 7624 | -7/Deep Caves | Found Zio. Weapon Casing 7626 | -7/Deep Caves | Found Zio. Weapon Casing 7643 | -7/Deep Caves | Found Zio. Weapon Casing 7740 | -7/Deep Caves | Discovered new exit (range 6) 7742 | -7/Deep Caves | Entered Proximity Caves 7924 | -6/Proximity Caves | Spotted B-75 Beast 7930 | -6/Proximity Caves | Discovered new exit (range 14) 7951 | -6/Proximity Caves | Entered Factory 7951 | -6/Factory | Evolved 2 slots: Power x1, Utility x1 7952 | -6/Factory | Identified exit to Factory 8031 | -6/Factory | Garrison activated, responded to threat 8045 | -6/Factory | Build established: Scavenger-Sprinter 8080 | -6/Factory | Discovered new exit (range 7) 8101 | -6/Factory | Identified exit to Lower Caves 8101 | -6/Factory | Entered Lower Caves 8212 | -6/Lower Caves | Encountered a Warlord checkpoint 8215 | -6/Lower Caves | Learned location of 1 exit from Research 8215 | -6/Lower Caves | Learned 8 Factory zone layouts 8215 | -6/Lower Caves | Learned Armory trap positions 8215 | -6/Lower Caves | Learned Research terminal intel 8308 | -6/Lower Caves | Learned location of Extension (-4) 8336 | -6/Lower Caves | Identified exit to Lower Caves 8360 | -6/Lower Caves | Entered another Lower Caves area 8429 | -6/Lower Caves | Lost 7 parts (1p3n3u) 8435 | -6/Lower Caves | Discovered exit to Factory (range 8) 8681 | -6/Lower Caves | Build established: Assassin 8823 | -6/Lower Caves | Found Alien Artifact 8823 | -6/Lower Caves | Identified Core Expander 8823 | -6/Lower Caves | Installed Core Expander, added new Utility slot 8834 | -6/Lower Caves | Encountered a Warlord checkpoint 8882 | -6/Lower Caves | Learned Factory trap positions 8882 | -6/Lower Caves | Learned Armory emergency access door positions 8994 | -6/Lower Caves | Learned location of 1 exit from Factory 9026 | -6/Lower Caves | Discovered new exit (range 13) 9027 | -6/Lower Caves | Spotted ZK-QRC(f) 9027 | -6/Lower Caves | Spotted N4-MCU(f) 9028 | -6/Lower Caves | Spotted 8W-7NK(f) 9029 | -6/Lower Caves | Encountered a Master Thief 9029 | -6/Lower Caves | Encountered a Master Thief 9029 | -6/Lower Caves | Encountered a Master Thief 9030 | -6/Lower Caves | Gui. Plasma Cannon stolen by Master Thief 9032 | -6/Lower Caves | Lgt. Fission Core stolen by Master Thief 9037 | -6/Lower Caves | Hacking Drone Bay stolen by Master Thief 9053 | -6/Lower Caves | Identified exit to Data Miner 9054 | -6/Lower Caves | Learned Factory stockpile data 9056 | -6/Lower Caves | Entered Data Miner 9056 | -6/Data Miner | Discovered new exit (range 6) 9061 | -6/Data Miner | Met Data Miner 9066 | -6/Data Miner | Learned location of Section 7 (-2) 9066 | -6/Data Miner | Acquired the access code to Warlord's prototype stash 9071 | -6/Data Miner | Received God Mode back door access code from Data Miner 9077 | -6/Data Miner | Identified exit to Proximity Caves 9077 | -6/Data Miner | Entered Proximity Caves 9121 | -5/Proximity Caves | Build established: Scavenger-Scout 9212 | -5/Proximity Caves | Spotted B-75 Beast 9249 | -5/Proximity Caves | Learned Factory security intel 9269 | -5/Proximity Caves | Ambushed by research squad 9282 | -5/Proximity Caves | Learned Factory terminal intel 9303 | -5/Proximity Caves | Discovered exit to Factory (range 7) 9306 | -5/Proximity Caves | Entered Factory 9306 | -5/Factory | Evolved 2 slots: Propulsion x1, Utility x1 9307 | -5/Factory | Identified exit to Upper Caves 9308 | -5/Factory | Identified exit to Factory 9310 | -5/Factory | Loaded intel: 87 trap records 9313 | -5/Factory | Loaded intel: 26 terminal locations 9664 | -5/Factory | Fabricated Biometal Heavy Treads (x2) 9755 | -5/Factory | Entered Upper Caves 9869 | -5/Upper Caves | Discovered new exit (range 10) 9873 | -5/Upper Caves | Identified exit to Upper Caves 9874 | -5/Upper Caves | Entered another Upper Caves area 9890 | -5/Upper Caves | Discovered exit to Factory (range 9) 9900 | -5/Upper Caves | Encountered a Warlord checkpoint 9950 | -5/Upper Caves | Build established: Scavenger-Mutant 10092 | -5/Upper Caves | Learned location of 1 exit from Proximity Caves 10093 | -5/Upper Caves | Attracted the attention of an 0b10 checkpoint 10178 | -5/Upper Caves | Learned Factory terminal intel 10249 | -5/Upper Caves | Spotted B4-8JE(f) 10250 | -5/Upper Caves | Encountered a Master Thief 10250 | -5/Upper Caves | Spotted I6-1AW(f) 10251 | -5/Upper Caves | Encountered a Master Thief 10251 | -5/Upper Caves | Zio. Metafield Generator stolen by Master Thief 10256 | -5/Upper Caves | Zio. Light DM Reactor stolen by Master Thief 10256 | -5/Upper Caves | Spotted 7D-A0Q(f) 10257 | -5/Upper Caves | Encountered a Master Thief 10257 | -5/Upper Caves | Spotted 13-J3D(f) 10258 | -5/Upper Caves | Encountered a Master Thief 10261 | -5/Upper Caves | XL Autogun Subcomponent stolen by Master Thief 10266 | -5/Upper Caves | XL Autogun Subcomponent stolen by Master Thief 10368 | -5/Upper Caves | Discovered new exit (range 7) 10377 | -5/Upper Caves | Entered Warlord 10545 | -5/Warlord | Build established: Mutant 10586 | -5/Warlord | Met Warlord 10605 | -5/Warlord | Opened Warlord's prototype stash 10610 | -5/Warlord | Found Prototype Device 10610 | -5/Warlord | Identified Thermal Barrier 10611 | -5/Warlord | Warlord's base attacked by MAIN.C 10617 | -5/Warlord | Found Prototype Hackware 10626 | -5/Warlord | Found Prototype Device 10626 | -5/Warlord | Identified Exp. Cloaking Device 10633 | -5/Warlord | Found Prototype Reactor 10633 | -5/Warlord | Identified Vortex Chain Reactor 10860 | -5/Warlord | Found Prototype Energy Gun 10863 | -5/Warlord | Found Prototype Energy Gun 10865 | -5/Warlord | Found Prototype Launcher 10961 | -5/Warlord | Warlord forces counterattacked 11022 | -5/Warlord | Found Prototype Special Weapon 11024 | -5/Warlord | Found Prototype Special Weapon 11027 | -5/Warlord | Found Prototype Special Weapon 11029 | -5/Warlord | Found Prototype Special Weapon 11032 | -5/Warlord | Found Prototype Special Weapon 11034 | -5/Warlord | Found Prototype Special Weapon 11034 | -5/Warlord | Identified RU-N14's Throwing Claymores v3 (x6) 11175 | -5/Warlord | Destroyed 7 combat bots 11267 | -5/Warlord | Spotted Striker 11286 | -5/Warlord | Warlord base infiltrated, sounded retreat 11289 | -5/Warlord | Rewired Striker 11290 | -5/Warlord | Spotted Executioner 11295 | -5/Warlord | Destroyed 13 combat bots 11311 | -5/Warlord | Found Prototype Processor 11311 | -5/Warlord | Identified Exp. Targeting Computer 11314 | -5/Warlord | Found Prototype Device 11328 | -5/Warlord | Spotted Striker 11330 | -5/Warlord | Allies destroyed Striker 11332 | -5/Warlord | Allies destroyed Striker 11377 | -5/Warlord | Discovered new exit (range 12) 11399 | -5/Warlord | Entered Proximity Caves 11399 | -4/Proximity Caves | Accompanied by 4 allies 11495 | -4/Proximity Caves | Build established: Commander-Mutant 11535 | -4/Proximity Caves | Received a Behemoth hack from an annoying Tinkerer 11590 | -4/Proximity Caves | Attracted the attention of an 0b10 checkpoint 11693 | -4/Proximity Caves | Entered Factory 11693 | -4/Factory | Accompanied by 4 allies 11693 | -4/Factory | Evolved 2 slots: Propulsion x1, Utility x1 11694 | -4/Factory | Identified exit to Upper Caves 11695 | -4/Factory | Loaded intel: 26 terminal locations 11832 | -4/Factory | Identified Vortex Rifle (x2) 11843 | -4/Factory | Identified exit to Extension 11939 | -4/Factory | Entered Extension 11939 | -4/Extension | Accompanied by 1 ally 12118 | -4/Extension | Build established: Mutant 12189 | -4/Extension | First assault squad dispatched 12255 | -4/Extension | Incoming investigation squad redirected 12378 | -4/Extension | Rescued A7 12380 | -4/Extension | Spotted B-86 Titan 12392 | -4/Extension | Spotted B-86 Titan 12402 | -4/Extension | Destroyed B-86 Titan 12417 | -4/Extension | Destroyed B-86 Titan 12548 | -4/Extension | Discovered new exit (range 16) 12549 | -4/Extension | Discovered new exit (range 15) 12574 | -4/Extension | Entered Cetus 12574 | -4/Cetus | Accompanied by 2 allies (A7) 12579 | -4/Cetus | Acquired a Cetus Manufacturing Module code from A7 12595 | -4/Cetus | Spotted Cetus Guard 12597 | -4/Cetus | Spotted Cetus Guard 12597 | -4/Cetus | Spotted Cetus Guard 12599 | -4/Cetus | Destroyed Cetus Guard 12599 | -4/Cetus | Destroyed Cetus Guard 12606 | -4/Cetus | Allies destroyed Cetus Guard 12606 | -4/Cetus | Spotted Cetus Guard 12613 | -4/Cetus | Allies destroyed Cetus Guard 12687 | -4/Cetus | Started Cetus Manufacturing Module 12712 | -4/Cetus | Manufactured an Enhanced Grunt 12722 | -4/Cetus | Discovered new exit (range 16) 12737 | -4/Cetus | Manufactured an Enhanced Grunt 12762 | -4/Cetus | Manufactured an Enhanced Grunt 12787 | -4/Cetus | Manufactured an Enhanced Grunt 12802 | -4/Cetus | Destroyed A7 12805 | -4/Cetus | Extracted ID and sensor layout for unrecognized location from A7's data core 12812 | -4/Cetus | Manufactured an Enhanced Grunt 12854 | -4/Cetus | Entered Archives 12854 | -4/Archives | Accompanied by 5 allies 12894 | -4/Archives | Found Prototype Device 12894 | -4/Archives | Identified Exp. Thermal Shield 12899 | -4/Archives | Identified Adv. Kinecellerator 12903 | -4/Archives | Identified System Mapper 12904 | -4/Archives | Identified Vortex Catalyst Activator 12932 | -4/Archives | Discovered new exit (range 13) 12955 | -4/Archives | Entered Hub_04(d) 12955 | -4/Hub_04(d) | Accompanied by 4 allies 13093 | -4/Hub_04(d) | Identified exit to Research 13192 | -4/Hub_04(d) | Build established: Hacker-Mutant 13233 | -4/Hub_04(d) | Entered Research 13233 | -3/Research | Accompanied by 2 allies 13233 | -3/Research | Evolved 2 slots: Power x1, Utility x1 13234 | -3/Research | Identified exit to Armory 13235 | -3/Research | Identified exit to Testing 13236 | -3/Research | Loaded intel: 22 terminal locations 13561 | -3/Research | Spotted B-86 Titan 13575 | -3/Research | Destroyed B-86 Titan 13816 | -3/Research | Garrison activated, responded to threat 13855 | -3/Research | Build established: Scavenger-Gunner 13867 | -3/Research | Destroyed 8 combat bots 13895 | -3/Research | Found Fusion Bomb Launcher 13897 | -3/Research | Entered Armory 13898 | -3/Armory | Loaded intel: 45 trap records 14154 | -3/Armory | Assisted by bots powering up and referring to "LRC-V3" 14397 | -3/Armory | First assault squad dispatched 14627 | -3/Armory | Spotted B-86 Titan 14722 | -3/Armory | Discovered new exit (range 3) 14726 | -3/Armory | Identified exit to Lab 14728 | -3/Armory | Entered Lab 14728 | -3/Lab | Discovered new exit (range 9) 14739 | -3/Lab | Identified exit to Research 14745 | -3/Lab | Hidden lab's door opened automatically 14745 | -3/Lab | Sensor layout match revealed 14746 | -3/Lab | Gained access to the hidden lab's interior 14896 | -3/Lab | Unable to decrypt terminal 14917 | -3/Lab | Build established: Scavenger-Mutant 15161 | -3/Lab | Found Prototype Energy Gun 15163 | -3/Lab | Found Prototype Energy Gun 15165 | -3/Lab | Found Prototype Device 15171 | -3/Lab | System corruption reached 10% 15420 | -3/Lab | Core integrity fell below 50% 15421 | -3/Lab | System corruption reached 30% 15435 | -3/Lab | Core integrity fell below 20% 15471 | -3/Lab | Lost 3 parts (1n2u) 15730 | -3/Lab | Build established: Mutant 15850 | -3/Lab | Found Prototype Hackware 15884 | -3/Lab | Core destroyed Last Messages --------------- 15779_ System corrupted: Energy discharge (-26). 15811_ 7Q>4#AAPT> 15879_ Slammed into Wall. 15879_ Destabilizing: Core damaged (-39). 15880_ Slammed into Wall. 15880_ Destabilizing: System corrupted (+2). 15881_ Slammed into Wall. 15881_ Broken Adv. Signal Interpreter destroyed. 15881_ System corrupted by crushing effect (+4). 15881_ Destabilizing: System corrupted (+1). 15881_ Destabilizing: Core damaged (-52). 15882_ Slammed into Wall. 15882_ Destabilizing: Core damaged (-13). 15883_ Acquired Exp. Energy Well. 15884_ Slammed into Wall. 15884_ Destabilizing: Core damaged (-39). Map ----- +----------------------------------------------------+ | | | | | | | | | | | | | ????????????????????????????????????? | | ????????????????????????????????????? | | ???###########??????????????????????? | | ???# """"""" #??????????????????????? | | ???#"""""""""#??????????????????????? | | ####"!""!""!"#####??????????????????? | | """"""""""" #??????????????????? | | "#??????????????????? | | ""#??????????????????? | | ""#??????????????????? | | ""#??????????????????? | | !"#??????????????????? | | ""#??????????????????? | | "" ""#??????????????????? | | "" ""#??????????????????? | | "" "######?????????????? | | A"""""?????#######?? | | #######????#"[[""#?? | | #####<######;!!!;#?? | | /[[!@|!!!!*[!#?? | | #A##########][!];#?? | | "###????????#""]*"#?? | | """""""" "#??????????#######?? | | ""#####" "#??????????????????? | | ""#???#" "#??????????????????? | | |#???#" "#??????????????????? | | "#???#" "#??????????????????? | | "#####" "#??????????????????? | | """"""" ""??????????????????? | | ""#?????????????????? | | ""#?????????????????? | | ""??????????????????? | | "" """""???????????????????? | | """"""""""""""""???????????????????? | | ""###########???????????????????????? | | ""#?????????????????????????????????? | | ###?????????????????????????????????? | | ????????????????????????????????????? | | ????????????????????????????????????? | | ????????????????????????????????????? | | ????????????????????????????????????? | | ????????????????????????????????????? | | ????????????????????????????????????? | | ????????????????????????????????????? | +----------------------------------------------------+ Best States ------------- Heat Dissipation 74 Coolant Potential 120 Energy Generation 75 Energy Capacity 1360 Matter Stores 300 Matter Capacity 300 Sight Range 16 Robot Scan Range 20 Terrain Scan Range 14 Terrain Scan Density 10 Cloak Strength 4 Corruption Block 12 Armor Coverage 800 Resistance: TH 50 Weapon Shielding 100 Point Defense Rating 240 Phase Shifting 15 Evasion (%) 70 Targeting Accuracy 20 Target Analysis 8 Recoil Reduction 6 Kinecelleration 50 Offensive Hacking 32 Authchip Count 1 Item Schematics ----------------- Hcp. Storage Unit | -8/Materials | Hacked Power Maul | -7/Zion | Archive Matter Compressor | -7/Zion | Archive Mak. Hammer | -7/Zion | Archive Lgt. Angular Momentum Engine | -7/Zion | Archive Weapon Cycler | -7/Zion | Archive Imp. Heavy Armor Plating | -7/Zion | Archive Imp. EM Pulse Cannon | -7/Zion | Archive Lance | -7/Zion | Archive Imp. Remote Datajack | -7/Zion | Archive Ripper | -7/Zion | Archive Force Field | -7/Zion | Archive Focal Shield | -7/Zion | Archive Mak. Flight Unit | -7/Zion | Archive Gauss Rifle | -7/Zion | Archive Mak. Cloaking Device | -7/Zion | Archive Combat Drone Bay | -6/Data Miner | Free Lgt. Regenerative Plating | -6/Data Miner | Free Enh. Flexi-carbon Leg | -6/Data Miner | Free Prc. Energy Filter | -6/Data Miner | Free Hvy. Proton Cannon | -6/Data Miner | Free Field Propulsion Array | -6/Data Miner | Free Dual-blade Saw | -6/Data Miner | Free Point Defense System | -6/Data Miner | Free Imp. Remote Shield | -6/Data Miner | Free Adv. Actuator Array | -6/Data Miner | Free Hardcell Cannon | -6/Data Miner | Free Robot Schematics ------------------ O-16 Technician | -10/Materials | Hacked B-48 Gladiator | -7/Zion | Archive D-53 Grenadier | -7/Zion | Archive G-73 Enforcer | -7/Zion | Archive A-27 Freighter | -6/Data Miner | Free B-60 Warrior | -6/Data Miner | Free M-36 Artificer | -6/Data Miner | Free S-27 Virus | -6/Data Miner | Free Y-64 Sentinel | -6/Data Miner | Free L-41 Fighter | -6/Data Miner | Free Fabricated ------------ Biometal Heavy Treads | x2 | -5/Factory | Preloaded Alien Tech Used ----------------- Core Expander Achievements -------------- None Challenges ------------ None Game ------ Seed ParticleBeamSpecial Manual? 0 Play Time 02:42:16 Cumulative 454.6 hours Start 2023.10.02 @ 13:47:55 End 2023.10.02 @ 23:23:34 Sessions 5 Manual Loads 0 Difficulty Rogue Special Mode None Game No. 504 Rogue 504 Adventurer 0 Explorer 0 Win Type - Total 12 Types 8/0/3/1/0/0/0/0/0 Lore% 81 Gallery% 89 Achievement% 80 Wizard Run 0 Options --------- ASCII 0 Keyboard 0 Movement Numpad Keybinds 0 Fullscreen 1 Font 18/Terminus Map View 76x50 Tactical HUD 1 Map Filters NONE Filters NONE Steam 1 RUN: 3d6f8e18-9274-4dd8-858f-f63b2b7fef90